fUSD/lending_fUSD_20250205
["ID","MTS","AMOUNT","RATE_DAILY","PERIOD"]
[351704823,1738758666045,-500.0,9.755e-05,2]
[351704824,1738758666058,-500.0,9.755e-05,2]
[351704825,1738758666072,-500.0,9.755e-05,2]
[351704826,1738758666089,-500.0,9.755e-05,2]
[351704827,1738758666102,-500.0,9.755e-05,2]
[351704828,1738758666116,-500.0,9.755e-05,2]
[351704829,1738758666130,-500.0,9.755e-05,2]
[351704830,1738758666144,-500.0,9.755e-05,2]
[351704831,1738758666158,-546.11,9.755e-05,2]
[351704832,1738758666171,-500.0,9.755e-05,2]
[351704833,1738758666185,-500.0,9.755e-05,2]
[351704834,1738758666198,-500.0,9.755e-05,2]
[351704835,1738758666216,-569.33,9.755e-05,2]
[351704836,1738758666229,-500.0,9.755e-05,2]
[351704837,1738758666243,-500.0,9.755e-05,2]
[351704838,1738758666257,-500.0,9.755e-05,2]
[351704839,1738758666270,-500.0,9.755e-05,2]
[351704840,1738758666285,-500.0,9.755e-05,2]
[351704841,1738758666299,-523.12,9.755e-05,2]
[351704842,1738758666313,-500.0,9.755e-05,2]
[351704843,1738758666329,-500.0,9.755e-05,2]
[351704844,1738758666344,-500.0,9.755e-05,2]
[351704845,1738758666357,-609.27,9.755e-05,2]
[351704846,1738758666371,-283.86,9.755e-05,2]
[351704847,1738758666385,-500.0,9.755e-05,2]
[351704848,1738758666399,-500.0,9.755e-05,2]
[351704849,1738758666413,-447.9868237,9.755e-05,2]
[351704850,1738758666428,-500.0,9.755e-05,2]
[351704851,1738758666440,-500.0,9.755e-05,2]
[351704852,1738758666449,-500.0,9.755e-05,2]
[351704853,1738758666459,-500.0,9.755e-05,2]
[351704854,1738758666469,-500.0,9.755e-05,2]
[351704855,1738758666479,-500.0,9.755e-05,2]
[351704856,1738758666488,-500.0,9.755e-05,2]
[351704857,1738758666498,-500.0,9.755e-05,2]
[351704858,1738758666508,-500.0,9.755e-05,2]
[351704859,1738758666518,-500.0,9.755e-05,2]
[351704860,1738758666527,-500.0,9.755e-05,2]
[351704861,1738758666537,-645.09,9.755e-05,2]
[351704862,1738758666548,-288.8,9.755e-05,2]
[351704863,1738758666558,-500.0,9.755e-05,2]
[351704864,1738758666568,-500.0,9.755e-05,2]
[351704865,1738758666577,-204.56992838,9.755e-05,2]
[351704866,1738758666587,-500.0,9.755e-05,2]
[351704867,1738758666596,-500.0,9.755e-05,2]
[351704868,1738758666606,-500.0,9.755e-05,2]
[351704869,1738758666615,-313.5361454,9.755e-05,2]
[351704870,1738758666624,-500.0,9.755e-05,2]
[351704871,1738758666633,-370.36,9.755e-05,2]
[351704872,1738758666642,-176.94,9.755e-05,2]
[351704873,1738758666652,-500.0,9.755e-05,2]
[351704874,1738758666662,-569.93,9.755e-05,2]
[351704875,1738758666671,-500.0,9.755e-05,2]
[351704876,1738758666681,-500.0,9.755e-05,2]
[351704877,1738758666691,-500.0,9.755e-05,2]
[351704878,1738758666701,-500.0,9.755e-05,2]
[351704879,1738758666710,-500.0,9.755e-05,2]
[351704880,1738758666719,-500.0,9.755e-05,2]
[351704881,1738758666729,-500.0,9.755e-05,2]
[351704882,1738758666738,-500.0,9.755e-05,2]
[351704883,1738758666747,-500.0,9.755e-05,2]
[351704884,1738758666756,-500.0,9.755e-05,2]
[351704885,1738758666765,-500.0,9.755e-05,2]
[351704886,1738758666775,-500.0,9.755e-05,2]
[351704887,1738758666785,-627.86,9.755e-05,2]
[351704888,1738758666794,-500.0,9.755e-05,2]
[351704889,1738758666803,-815.41,9.755e-05,2]
[351704890,1738758666813,-500.0,9.755e-05,2]
[351704891,1738758666823,-500.0,9.755e-05,2]
[351704892,1738758666836,-500.0,9.755e-05,2]
[351704893,1738758666846,-500.0,9.755e-05,2]
[351704894,1738758667237,-500.0,9.755e-05,2]
[351704895,1738758667257,-500.0,9.755e-05,2]
[351704896,1738758667268,-500.0,9.755e-05,2]
[351704897,1738758667278,-500.0,9.755e-05,2]
[351704898,1738758667287,-609.73,9.755e-05,2]
[351704899,1738758667296,-196.76470838,9.755e-05,2]
[351704900,1738758667305,-500.0,9.755e-05,2]
[351704901,1738758667314,-500.0,9.755e-05,2]
[351704902,1738758667324,-500.0,9.755e-05,2]
[351704903,1738758667335,-500.0,9.755e-05,2]
[351704904,1738758667345,-500.0,9.755e-05,2]
[351704905,1738758667354,-500.0,9.755e-05,2]
[351704906,1738758667364,-500.0,9.755e-05,2]
[351704907,1738758667373,-500.0,9.755e-05,2]
[351704908,1738758667383,-500.0,9.755e-05,2]
[351704909,1738758667393,-500.0,9.755e-05,2]
[351704910,1738758667402,-1044.87,9.755e-05,2]
[351704911,1738758667412,-500.0,9.755e-05,2]
[351704912,1738758667421,-500.0,9.755e-05,2]
[351704913,1738758667431,-500.0,9.755e-05,2]
[351704914,1738758667440,-500.0,9.755e-05,2]
[351704915,1738758667450,-500.0,9.755e-05,2]
[351704916,1738758667459,-500.0,9.755e-05,2]
[351704917,1738758667468,-500.0,9.755e-05,2]
[351704918,1738758667478,-500.0,9.755e-05,2]
[351704919,1738758667488,-520.72,9.755e-05,2]
[351704920,1738758667497,-500.0,9.755e-05,2]
[351704921,1738758667508,-500.0,9.755e-05,2]
[351704922,1738758667518,-500.0,9.755e-05,2]
[351704923,1738758667527,-500.0,9.755e-05,2]
[351704924,1738758667537,-615.88,9.755e-05,2]
[351704925,1738758667546,-500.0,9.755e-05,2]
[351704926,1738758667557,-500.0,9.755e-05,2]
[351704927,1738758667566,-715.94,9.755e-05,2]
[351704928,1738758667577,-500.0,9.755e-05,2]
[351704929,1738758667586,-593.45,9.755e-05,2]
[351704930,1738758667596,-500.0,9.755e-05,2]
[351704931,1738758667605,-500.0,9.755e-05,2]
[351704932,1738758667615,-500.0,9.755e-05,2]
[351704933,1738758667624,-500.0,9.755e-05,2]
[351704934,1738758667633,-500.0,9.755e-05,2]
[351704935,1738758667643,-500.0,9.755e-05,2]
[351704936,1738758667652,-500.0,9.755e-05,2]
[351704937,1738758667662,-1515.32,9.755e-05,2]
[351704938,1738758667670,-802.93,9.755e-05,2]
[351704939,1738758667680,-500.0,9.755e-05,2]
[351704940,1738758667690,-500.0,9.755e-05,2]
[351704941,1738758667699,-521.03,9.755e-05,2]
[351704942,1738758667709,-581.69,9.755e-05,2]
[351704943,1738758667718,-500.0,9.755e-05,2]
[351704944,1738758667727,-518.02,9.755e-05,2]
[351704945,1738758667737,-500.0,9.755e-05,2]
[351704946,1738758667745,-666.38,9.755e-05,2]
[351704947,1738758667755,-500.0,9.755e-05,2]
[351704948,1738758667764,-500.0,9.755e-05,2]
[351704949,1738758667773,-500.0,9.755e-05,2]
[351704950,1738758667783,-500.0,9.755e-05,2]
[351704951,1738758667793,-500.0,9.755e-05,2]
[351704952,1738758667803,-865.56,9.755e-05,2]
[351704953,1738758667812,-500.0,9.755e-05,2]
[351704954,1738758667822,-500.0,9.755e-05,2]
[351704955,1738758667833,-500.0,9.755e-05,2]
[351704956,1738758667844,-500.0,9.755e-05,2]
[351704957,1738758667853,-500.0,9.755e-05,2]
[351704958,1738758667863,-500.0,9.755e-05,2]
[351704959,1738758667872,-500.0,9.755e-05,2]
[351704960,1738758667881,-500.0,9.755e-05,2]
[351704961,1738758667890,-500.0,9.755e-05,2]
[351704962,1738758667899,-500.0,9.755e-05,2]
[351704963,1738758667907,-500.0,9.755e-05,2]
[351704964,1738758667916,-500.0,9.755e-05,2]
[351704965,1738758667925,-500.0,9.755e-05,2]
[351704966,1738758667934,-500.0,9.755e-05,2]
[351704967,1738758667943,-500.0,9.755e-05,2]
[351704968,1738758667952,-500.0,9.755e-05,2]
[351704969,1738758667962,-500.0,9.755e-05,2]
[351704970,1738758667972,-500.0,9.755e-05,2]
[351704971,1738758667983,-500.0,9.755e-05,2]
[351704972,1738758667993,-763.62,9.755e-05,2]
[351704973,1738758668003,-500.0,9.755e-05,2]
[351704974,1738758668013,-500.0,9.755e-05,2]
[351704975,1738758668023,-240.36,9.755e-05,2]
[351704976,1738758668033,-500.0,9.755e-05,2]
[351704977,1738758668044,-500.0,9.755e-05,2]
[351704978,1738758668053,-500.0,9.755e-05,2]
[351704979,1738758668063,-500.0,9.755e-05,2]
[351704980,1738758668073,-500.0,9.755e-05,2]
[351704981,1738758668090,-754.21,9.755e-05,2]
[351704982,1738758668099,-3159.35,9.755e-05,2]
[351704983,1738758668109,-500.0,9.755e-05,2]
[351704984,1738758668119,-500.0,9.755e-05,2]
[351704985,1738758668129,-500.0,9.755e-05,2]
[351704986,1738758668140,-500.0,9.755e-05,2]
[351704987,1738758668150,-578.44,9.755e-05,2]
[351704988,1738758668160,-500.0,9.755e-05,2]
[351704989,1738758668170,-500.0,9.755e-05,2]
[351704990,1738758668180,-500.0,9.755e-05,2]
[351704991,1738758668190,-500.0,9.755e-05,2]
[351704992,1738758668201,-500.0,9.755e-05,2]
[351704993,1738758668213,-500.0,9.755e-05,2]
[351704994,1738758668223,-500.0,9.755e-05,2]
[351704995,1738758668233,-791.99,9.755e-05,2]
[351704996,1738758668243,-500.0,9.755e-05,2]
[351704997,1738758668252,-500.0,9.755e-05,2]
[351704998,1738758668262,-537.57511237,9.755e-05,2]
[351704999,1738758668270,-500.0,9.755e-05,2]
[351705000,1738758668281,-500.0,9.755e-05,2]
[351705001,1738758668291,-500.0,9.755e-05,2]
[351705002,1738758668300,-500.0,9.755e-05,2]
[351705003,1738758668310,-500.0,9.756e-05,2]
[351705004,1738758668319,-337.74,9.756e-05,2]
[351705005,1738758668331,-151.0,9.758e-05,2]
[351705006,1738758668341,-1000.0,9.759e-05,2]
[351705007,1738758668351,-1000.0,9.769e-05,2]
[351705008,1738758668360,-638.0,9.789e-05,2]
[351705009,1738758668370,-568.0,9.789e-05,2]
[351705010,1738758668379,-1826.0,9.789e-05,2]
[351705011,1738758668389,-907.0,9.789e-05,2]
[351705012,1738758668398,-783.0,9.789e-05,2]
[351705013,1738758668408,-1264.0,9.789e-05,2]
[351705014,1738758668418,-2953.0,9.789e-05,2]
[351705015,1738758668428,-1329.138,9.789e-05,2]
[351705016,1738758668438,-538.0,9.789e-05,2]
[351705017,1738758668447,-215.661,9.789e-05,2]
[351705018,1738758668457,-3911.0,9.789e-05,2]
[351705019,1738758668467,-1007.0,9.789e-05,2]
[351705020,1738758668476,-1270.0,9.789e-05,2]
[351705021,1738758668486,-639.0,9.789e-05,2]
[351705022,1738758668496,-151.0,9.794e-05,2]
[351705023,1738758668505,-151.0,9.794e-05,2]
[351705024,1738758668515,-200.0,9.8e-05,2]
[351705025,1738758668525,-200.0,9.8e-05,2]
[351705026,1738758668535,-200.0,9.8e-05,2]
[351705027,1738758668545,-1000.0,9.809e-05,2]
[351705028,1738758668555,-700.87594444,9.858e-05,2]
[351705029,1738758668564,-157.104,9.868e-05,2]
[351705030,1738758668574,-160.33,9.868e-05,2]
[351705031,1738758668586,-284.644,9.868e-05,2]
[351705032,1738758668595,-150.45,9.868e-05,2]
[351705033,1738758668605,-1000.0,9.876e-05,2]
[351705034,1738758668615,-500.0,9.89e-05,2]
[351705035,1738758668624,-500.0,9.89e-05,2]
[351705036,1738758668633,-500.0,9.89e-05,2]
[351705037,1738758668643,-876.9,9.89e-05,2]
[351705038,1738758668652,-500.0,9.89e-05,2]
[351705039,1738758668661,-500.0,9.89e-05,2]
[351705040,1738758668671,-732.38,9.89e-05,2]
[351705041,1738758668680,-589.15,9.89e-05,2]
[351705042,1738758668689,-500.0,9.89e-05,2]
[351705043,1738758668699,-500.0,9.89e-05,2]
[351705044,1738758668708,-500.0,9.89e-05,2]
[351705045,1738758668718,-182.72,9.89e-05,2]
[351705046,1738758668727,-500.0,9.89e-05,2]
[351705047,1738758668736,-624.73,9.89e-05,2]
[351705048,1738758668745,-500.0,9.89e-05,2]
[351705049,1738758668755,-500.0,9.89e-05,2]
[351705050,1738758668764,-500.0,9.89e-05,2]
[351705051,1738758668774,-405.82,9.89e-05,2]
[351705052,1738758668783,-500.0,9.89e-05,2]
[351705053,1738758668793,-500.0,9.89e-05,2]
[351705054,1738758668803,-500.0,9.89e-05,2]
[351705055,1738758668812,-500.0,9.89e-05,2]
[351705056,1738758668821,-500.0,9.89e-05,2]
[351705057,1738758668832,-500.0,9.89e-05,2]
[351705058,1738758668842,-500.0,9.89e-05,2]
[351705059,1738758668851,-500.0,9.89e-05,2]
[351705060,1738758668860,-897.52,9.89e-05,2]
[351705061,1738758668870,-500.0,9.89e-05,2]
[351705062,1738758668879,-500.0,9.89e-05,2]
[351705063,1738758668888,-500.0,9.89e-05,2]
[351705064,1738758668898,-500.0,9.89e-05,2]
[351705065,1738758668907,-507.49,9.89e-05,2]
[351705066,1738758668916,-1272.65,9.89e-05,2]
[351705067,1738758668926,-500.0,9.891e-05,2]
[351705068,1738758668934,-513.52099122,9.891e-05,2]
[351705069,1738758668944,-500.0,9.891e-05,2]
[351705070,1738758668952,-500.0,9.891e-05,2]
[351705071,1738758668962,-500.0,9.891e-05,2]
[351705072,1738758668972,-614.34,9.891e-05,2]
[351705073,1738758668982,-500.0,9.891e-05,2]
[351705074,1738758668991,-500.0,9.891e-05,2]
[351705075,1738758669000,-500.0,9.891e-05,2]
[351705076,1738758669010,-500.0,9.891e-05,2]
[351705077,1738758669020,-2162.132557,9.891e-05,2]
[351705078,1738758669029,-500.0,9.891e-05,2]
[351705079,1738758669038,-1839.030105,9.891e-05,2]
[351705080,1738758669048,-500.0,9.891e-05,2]
[351705081,1738758669058,-152.922915,9.891e-05,2]
[351705082,1738758669067,-559.08,9.891e-05,2]
[351705083,1738758669078,-500.0,9.891e-05,2]
[351705084,1738758669088,-500.0,9.891e-05,2]
[351705085,1738758669097,-500.0,9.891e-05,2]
[351705086,1738758669106,-586.45,9.891e-05,2]
[351705087,1738758669115,-632.85,9.891e-05,2]
[351705088,1738758669125,-500.0,9.891e-05,2]
[351705089,1738758669134,-839.91,9.891e-05,2]
[351705090,1738758669143,-936.28,9.891e-05,2]
[351705091,1738758669152,-2759.48,9.891e-05,2]
[351705092,1738758669161,-500.0,9.891e-05,2]
[351705093,1738758669171,-534.83,9.891e-05,2]
[351705094,1738758669181,-500.0,9.891e-05,2]
[351705095,1738758669190,-1133.61,9.891e-05,2]
[351705096,1738758669201,-500.0,9.891e-05,2]
[351705097,1738758669214,-437.922207,9.891e-05,2]
[351705098,1738758669224,-421.067735,9.891e-05,2]
[351705099,1738758669233,-500.0,9.891e-05,2]
[351705100,1738758669242,-500.0,9.891e-05,2]
[351705101,1738758669255,-500.0,9.891e-05,2]
[351705102,1738758669264,-500.0,9.891e-05,2]
[351705103,1738758669274,-589.38,9.892e-05,2]
[351705104,1738758669284,-500.0,9.892e-05,2]
[351705105,1738758669294,-363.74,9.892e-05,2]
[351705106,1738758669303,-500.0,9.892e-05,2]
[351705107,1738758669313,-500.0,9.892e-05,2]
[351705108,1738758669322,-500.0,9.892e-05,2]
[351705109,1738758669333,-500.0,9.892e-05,2]
[351705110,1738758669342,-626.68,9.892e-05,2]
[351705111,1738758669352,-1576.67,9.892e-05,2]
[351705112,1738758669362,-500.0,9.892e-05,2]
[351705113,1738758669372,-500.0,9.892e-05,2]
[351705114,1738758669382,-450.43,9.892e-05,2]
[351705115,1738758669391,-500.0,9.892e-05,2]
[351705116,1738758669400,-500.0,9.892e-05,2]
[351705117,1738758669409,-500.0,9.892e-05,2]
[351705118,1738758669419,-500.0,9.892e-05,2]
[351705119,1738758669429,-534.25750061,9.892e-05,2]
[351705120,1738758669439,-500.0,9.892e-05,2]
[351705121,1738758669450,-500.0,9.892e-05,2]
[351705122,1738758669460,-500.0,9.892e-05,2]
[351705123,1738758669470,-500.0,9.892e-05,2]
[351705124,1738758669480,-500.0,9.892e-05,2]
[351705125,1738758669490,-500.0,9.892e-05,2]
[351705126,1738758669499,-500.0,9.892e-05,2]
[351705127,1738758669509,-500.0,9.892e-05,2]
[351705128,1738758669519,-500.0,9.892e-05,2]
[351705129,1738758669529,-500.0,9.892e-05,2]
[351705130,1738758669539,-445.05,9.892e-05,2]
[351705131,1738758669549,-500.0,9.892e-05,2]
[351705132,1738758669559,-500.0,9.892e-05,2]
[351705133,1738758669569,-500.0,9.892e-05,2]
[351705134,1738758669579,-500.0,9.892e-05,2]
[351705135,1738758669589,-500.0,9.892e-05,2]
[351705136,1738758669599,-500.0,9.892e-05,2]
[351705137,1738758669609,-500.0,9.892e-05,2]
[351705138,1738758669619,-541.03,9.892e-05,2]
[351705139,1738758669630,-597.8,9.892e-05,2]
[351705140,1738758669640,-640.41,9.892e-05,2]
[351705141,1738758669650,-500.0,9.892e-05,2]
[351705142,1738758669659,-500.0,9.892e-05,2]
[351705143,1738758669668,-500.0,9.892e-05,2]
[351705144,1738758669677,-500.0,9.892e-05,2]
[351705145,1738758669687,-570.66,9.892e-05,2]
[351705146,1738758669696,-603.28,9.892e-05,2]
[351705147,1738758669706,-256.1,9.892e-05,2]
[351705148,1738758669716,-595.23,9.892e-05,2]
[351705149,1738758669725,-500.0,9.892e-05,2]
[351705150,1738758669735,-500.0,9.892e-05,2]
[351705151,1738758669744,-436.31,9.892e-05,2]
[351705152,1738758669753,-500.0,9.892e-05,2]
[351705153,1738758669762,-460.24,9.892e-05,2]
[351705154,1738758669773,-500.0,9.892e-05,2]
[351705155,1738758669783,-500.0,9.892e-05,2]
[351705156,1738758669792,-500.0,9.892e-05,2]
[351705157,1738758669802,-500.0,9.892e-05,2]
[351705158,1738758669811,-500.0,9.892e-05,2]
[351705159,1738758669820,-257.04,9.892e-05,2]
[351705160,1738758669830,-500.0,9.892e-05,2]
[351705161,1738758669839,-500.0,9.892e-05,2]
[351705162,1738758669849,-546.11,9.892e-05,2]
[351705163,1738758669859,-500.0,9.892e-05,2]
[351705164,1738758669868,-500.0,9.892e-05,2]
[351705165,1738758669877,-514.27,9.892e-05,2]
[351705166,1738758669887,-569.33,9.892e-05,2]
[351705167,1738758669896,-500.0,9.892e-05,2]
[351705168,1738758669905,-500.0,9.892e-05,2]
[351705169,1738758669915,-500.0,9.892e-05,2]
[351705170,1738758669925,-500.0,9.892e-05,2]
[351705171,1738758669934,-500.0,9.892e-05,2]
[351705172,1738758669944,-523.12,9.892e-05,2]
[351705173,1738758669953,-500.0,9.892e-05,2]
[351705174,1738758669963,-500.0,9.892e-05,2]
[351705175,1738758669972,-500.0,9.892e-05,2]
[351705176,1738758669982,-500.0,9.892e-05,2]
[351705177,1738758669991,-500.0,9.892e-05,2]
[351705178,1738758670000,-500.0,9.892e-05,2]
[351705179,1738758670009,-500.0,9.892e-05,2]
[351705180,1738758670019,-500.0,9.892e-05,2]
[351705181,1738758670028,-500.0,9.892e-05,2]
[351705182,1738758670038,-627.73,9.892e-05,2]
[351705183,1738758670048,-500.0,9.892e-05,2]
[351705184,1738758670058,-500.0,9.892e-05,2]
[351705185,1738758670067,-430.75,9.892e-05,2]
[351705186,1738758670077,-500.0,9.892e-05,2]
[351705187,1738758670088,-500.0,9.892e-05,2]
[351705188,1738758670098,-500.0,9.892e-05,2]
[351705189,1738758670108,-500.0,9.892e-05,2]
[351705190,1738758670118,-500.0,9.892e-05,2]
[351705191,1738758670127,-500.0,9.892e-05,2]
[351705192,1738758670137,-500.0,9.892e-05,2]
[351705193,1738758670147,-622.32,9.892e-05,2]
[351705194,1738758670157,-569.93,9.892e-05,2]
[351705195,1738758670166,-500.0,9.892e-05,2]
[351705196,1738758670176,-500.0,9.892e-05,2]
[351705197,1738758670186,-442.88,9.892e-05,2]
[351705198,1738758670196,-500.0,9.892e-05,2]
[351705199,1738758670207,-500.0,9.892e-05,2]
[351705200,1738758670218,-599.83,9.892e-05,2]
[351705201,1738758670227,-321.36,9.892e-05,2]
[351705202,1738758670237,-226.77158562,9.892e-05,2]
[351705203,1738758670247,-500.0,9.892e-05,2]
[351705204,1738758670257,-500.0,9.892e-05,2]
[351705205,1738758670267,-500.0,9.892e-05,2]
[351705206,1738758670277,-500.0,9.892e-05,2]
[351705207,1738758670287,-627.86,9.892e-05,2]
[351705208,1738758670300,-500.0,9.892e-05,2]
[351705209,1738758670313,-815.41,9.892e-05,2]
[351705210,1738758670326,-500.0,9.892e-05,2]
[351705211,1738758670338,-500.0,9.892e-05,2]
[351705212,1738758670347,-500.0,9.892e-05,2]
[351705213,1738758670357,-500.0,9.892e-05,2]
[351705214,1738758670367,-500.0,9.892e-05,2]
[351705215,1738758670377,-209.44,9.892e-05,2]
[351705216,1738758670387,-500.0,9.892e-05,2]
[351705217,1738758670397,-500.0,9.892e-05,2]
[351705218,1738758670407,-609.73,9.892e-05,2]
[351705219,1738758670416,-500.0,9.892e-05,2]
[351705220,1738758670427,-500.0,9.892e-05,2]
[351705221,1738758670437,-500.0,9.892e-05,2]
[351705222,1738758670446,-500.0,9.892e-05,2]
[351705223,1738758670456,-500.0,9.892e-05,2]
[351705224,1738758670466,-500.0,9.892e-05,2]
[351705225,1738758670637,-500.0,9.892e-05,2]
[351705226,1738758670648,-500.0,9.892e-05,2]
[351705227,1738758670658,-500.0,9.892e-05,2]
[351705228,1738758670668,-500.0,9.892e-05,2]
[351705229,1738758670678,-1044.87,9.892e-05,2]
[351705230,1738758670688,-500.0,9.892e-05,2]
[351705231,1738758670698,-500.0,9.892e-05,2]
[351705232,1738758670708,-500.0,9.892e-05,2]
[351705233,1738758670718,-500.0,9.892e-05,2]
[351705234,1738758670728,-500.0,9.892e-05,2]
[351705235,1738758670741,-504.40838498,9.892e-05,2]
[351705236,1738758670751,-535.11354595,9.892e-05,2]
[351705237,1738758670761,-500.0,9.892e-05,2]
[351705238,1738758670771,-520.72,9.892e-05,2]
[351705239,1738758670781,-500.0,9.892e-05,2]
[351705240,1738758670791,-647.70937116,9.892e-05,2]
[351705241,1738758670801,-500.0,9.892e-05,2]
[351705242,1738758670811,-500.0,9.892e-05,2]
[351705243,1738758670820,-615.88,9.892e-05,2]
[351705244,1738758670832,-500.0,9.892e-05,2]
[351705245,1738758670842,-500.0,9.892e-05,2]
[351705246,1738758670852,-715.94,9.892e-05,2]
[351705247,1738758670862,-500.0,9.892e-05,2]
[351705248,1738758670872,-593.45,9.892e-05,2]
[351705249,1738758670881,-500.0,9.892e-05,2]
[351705250,1738758670891,-500.0,9.892e-05,2]
[351705251,1738758670901,-500.0,9.892e-05,2]
[351705252,1738758670910,-500.0,9.892e-05,2]
[351705253,1738758670919,-500.0,9.892e-05,2]
[351705254,1738758670931,-500.0,9.892e-05,2]
[351705255,1738758670940,-1515.32,9.892e-05,2]
[351705256,1738758670950,-802.93,9.892e-05,2]
[351705257,1738758670960,-500.0,9.892e-05,2]
[351705258,1738758670970,-500.0,9.892e-05,2]
[351705259,1738758670979,-521.03,9.892e-05,2]
[351705260,1738758670989,-581.69,9.892e-05,2]
[351705261,1738758671001,-279.41089813,9.892e-05,2]
[351705262,1738758671011,-518.02,9.892e-05,2]
[351705263,1738758671021,-500.0,9.892e-05,2]
[351705264,1738758671031,-666.38,9.892e-05,2]
[351705265,1738758671040,-500.0,9.892e-05,2]
[351705266,1738758671050,-500.0,9.892e-05,2]
[351705267,1738758671060,-500.0,9.892e-05,2]
[351705268,1738758671070,-500.0,9.892e-05,2]
[351705269,1738758671080,-500.0,9.892e-05,2]
[351705270,1738758671090,-865.56,9.892e-05,2]
[351705271,1738758671100,-500.0,9.892e-05,2]
[351705272,1738758671110,-500.0,9.892e-05,2]
[351705273,1738758671121,-500.0,9.892e-05,2]
[351705274,1738758671131,-500.0,9.892e-05,2]
[351705275,1738758671141,-500.0,9.892e-05,2]
[351705276,1738758671150,-500.0,9.892e-05,2]
[351705277,1738758671160,-500.0,9.892e-05,2]
[351705278,1738758671170,-500.0,9.892e-05,2]
[351705279,1738758671179,-500.0,9.892e-05,2]
[351705280,1738758671189,-500.0,9.892e-05,2]
[351705281,1738758671202,-500.0,9.892e-05,2]
[351705282,1738758671212,-500.0,9.892e-05,2]
[351705283,1738758671221,-500.0,9.892e-05,2]
[351705284,1738758671231,-500.0,9.892e-05,2]
[351705285,1738758671241,-500.0,9.892e-05,2]
[351705286,1738758671250,-500.0,9.892e-05,2]
[351705287,1738758671258,-500.0,9.892e-05,2]
[351705288,1738758671267,-500.0,9.892e-05,2]
[351705289,1738758671278,-500.0,9.892e-05,2]
[351705290,1738758671288,-763.62,9.892e-05,2]
[351705291,1738758671298,-500.0,9.892e-05,2]
[351705292,1738758671307,-500.0,9.892e-05,2]
[351705293,1738758671316,-500.0,9.892e-05,2]
[351705294,1738758671325,-500.0,9.892e-05,2]
[351705295,1738758671337,-500.0,9.892e-05,2]
[351705296,1738758671347,-500.0,9.892e-05,2]
[351705297,1738758671357,-500.0,9.892e-05,2]
[351705298,1738758671367,-754.21,9.892e-05,2]
[351705299,1738758671376,-3159.35,9.892e-05,2]
[351705300,1738758671386,-500.0,9.892e-05,2]
[351705301,1738758671396,-196.17,9.892e-05,2]
[351705302,1738758671406,-500.0,9.892e-05,2]
[351705303,1738758671416,-578.44,9.892e-05,2]
[351705304,1738758671426,-500.0,9.892e-05,2]
[351705305,1738758671436,-521.6,9.892e-05,2]
[351705306,1738758671446,-500.0,9.892e-05,2]
[351705307,1738758671455,-500.0,9.892e-05,2]
[351705308,1738758671465,-500.0,9.892e-05,2]
[351705309,1738758671475,-500.0,9.892e-05,2]
[351705310,1738758671485,-500.0,9.892e-05,2]
[351705311,1738758671495,-791.99,9.892e-05,2]
[351705312,1738758671505,-500.0,9.892e-05,2]
[351705313,1738758671514,-500.0,9.892e-05,2]
[351705314,1738758671524,-500.0,9.892e-05,2]
[351705315,1738758671533,-500.0,9.892e-05,2]
[351705316,1738758671543,-500.0,9.892e-05,2]
[351705317,1738758671553,-550.8045,9.893e-05,2]
[351705318,1738758671563,-1000.0,9.919e-05,2]
[351705319,1738758671573,-1000.0,9.92e-05,2]
[351705320,1738758671584,-1000.0,9.924e-05,2]
[351705321,1738758671594,-1000.0,9.924e-05,2]
[351705322,1738758671604,-1000.0,9.935e-05,2]